fUST/lending_fUST_20250907
["ID","MTS","AMOUNT","RATE_DAILY","PERIOD"]
[383955506,1757206232900,-480.0,0.00013987,2]
[383955507,1757206232909,-685.34,0.00013987,2]
[383955508,1757206232918,-480.0,0.00013987,2]
[383955509,1757206232927,-480.0,0.00013987,2]
[383955510,1757206232936,-480.0,0.00013987,2]
[383955511,1757206232945,-694.41,0.00013987,2]
[383955512,1757206232954,-1982.15,0.00013987,2]
[383955513,1757206232962,-1352.47,0.00013987,2]
[383955514,1757206232971,-480.0,0.00013987,2]
[383955515,1757206232980,-2425.26,0.00013987,2]
[383955516,1757206232989,-755.74,0.00013987,2]
[383955517,1757206232998,-2475.59,0.00013987,2]
[383955518,1757206233126,-480.0,0.00013987,2]
[383955519,1757206233149,-480.0,0.00013987,2]
[383955520,1757206233158,-480.0,0.00013987,2]
[383955521,1757206233168,-480.0,0.00013987,2]
[383955522,1757206233178,-245.332218,0.00013987,2]
[383955523,1757206233188,-245.332218,0.00013987,2]
[383955524,1757206233202,-245.332218,0.00013987,2]
[383955525,1757206233213,-16763.89170981,0.00013987,2]
[383955526,1757206233223,-1969.28338412,0.00013988,2]
[383955527,1757206233232,-986.88,0.00013988,2]
[383955528,1757206233242,-151.0,0.00013988,2]
[383955529,1757206233251,-480.0,0.00013988,2]
[383955530,1757206233260,-480.0,0.00013988,2]
[383955531,1757206233269,-876.23,0.00013988,2]
[383955532,1757206233279,-480.0,0.00013988,2]
[383955533,1757206233289,-941.79,0.00013988,2]
[383955534,1757206233299,-675.43,0.00013988,2]
[383955535,1757206233309,-480.0,0.00013988,2]
[383955536,1757206233319,-480.0,0.00013988,2]
[383955537,1757206233328,-480.0,0.00013988,2]
[383955538,1757206233337,-480.0,0.00013988,2]
[383955539,1757206233346,-480.0,0.00013988,2]
[383955540,1757206233356,-151.0,0.00013988,2]
[383955541,1757206233365,-151.0,0.00013988,2]
[383955542,1757206233375,-151.0,0.00013988,2]
[383955543,1757206233384,-151.0,0.00013988,2]
[383955544,1757206233393,-187.10234185,0.00013988,2]
[383955551,1757206238152,-245.332218,0.00013987,2]
[383955552,1757206238162,-480.0,0.00013987,2]
[383955553,1757206238171,-839.72,0.00013987,2]
[383955554,1757206238182,-854.09765815,0.00013988,2]
[383955555,1757206238191,-151.0,0.00013988,2]
[383955556,1757206238201,-631.09012385,0.00013988,2]
[383955557,1757206238255,-2342.30987615,0.00013988,2]
[383955558,1757206238266,-151.0,0.00013988,2]
[383955559,1757206238275,-1022.72,0.00013988,2]
[383955560,1757206238285,-151.0,0.00013988,2]
[383955561,1757206238296,-151.0,0.00013988,2]
[383955562,1757206238305,-151.0,0.00013988,2]
[383955563,1757206238315,-1819.35,0.00013988,2]
[383955564,1757206238325,-480.0,0.00013988,2]
[383955565,1757206238335,-480.0,0.00013988,2]
[383955566,1757206238344,-151.0,0.00013988,2]
[383955567,1757206238354,-1320.69,0.00013988,2]
[383955568,1757206238363,-10846.99,0.00013988,2]
[383955569,1757206238373,-151.0,0.00013988,2]
[383955570,1757206238382,-480.0,0.00013988,2]
[383955571,1757206238392,-151.0,0.00013988,2]
[383955572,1757206238401,-480.0,0.00013988,2]
[383955573,1757206238411,-480.0,0.00013988,2]
[383955574,1757206238420,-562.14,0.00013988,2]
[383955575,1757206238431,-1382.53,0.00013988,2]
[383955576,1757206238441,-480.0,0.00013988,2]
[383955577,1757206238451,-480.0,0.00013988,2]
[383955578,1757206238461,-151.0,0.00013988,2]
[383955579,1757206238471,-151.0,0.00013988,2]
[383955580,1757206238481,-480.0,0.00013988,2]
[383955581,1757206238491,-563.92616115,0.00013988,2]
[383955582,1757206238502,-481.72919466,0.00013988,2]
[383955583,1757206238512,-563.92616115,0.00013988,2]
[383955584,1757206238522,-563.92616115,0.00013988,2]
[383955585,1757206238531,-563.92616115,0.00013988,2]
[383955586,1757206238541,-563.92616115,0.00013988,2]
[383955587,1757206238551,-563.92616115,0.00013988,2]
[383955588,1757206238561,-563.92616115,0.00013988,2]
[383955589,1757206238571,-563.92616115,0.00013988,2]
[383955590,1757206238580,-563.92616115,0.00013988,2]
[383955591,1757206238590,-563.92616115,0.00013988,2]
[383955592,1757206238600,-563.92616115,0.00013988,2]
[383955593,1757206238610,-563.92616115,0.00013988,2]
[383955594,1757206238619,-563.92616115,0.00013988,2]
[383955595,1757206238629,-563.92616115,0.00013988,2]
[383955596,1757206238638,-563.92616115,0.00013988,2]
[383955597,1757206238647,-563.92616115,0.00013988,2]
[383955598,1757206238656,-563.92616115,0.00013988,2]
[383955599,1757206238665,-563.92616115,0.00013988,2]
[383955600,1757206238674,-563.92616115,0.00013988,2]
[383955601,1757206238683,-563.92616115,0.00013988,2]
[383955602,1757206238692,-563.92616115,0.00013988,2]
[383955603,1757206238701,-563.92616115,0.00013988,2]
[383955604,1757206238710,-563.92616115,0.00013988,2]
[383955605,1757206238720,-593.98,0.00013988,2]
[383955606,1757206238729,-480.0,0.00013988,2]
[383955607,1757206238738,-628.37486526,0.00013988,2]
[383955608,1757206238748,-628.37486526,0.00013988,2]
[383955609,1757206238758,-628.37486526,0.00013988,2]
[383955610,1757206238767,-628.37486526,0.00013988,2]
[383955611,1757206238776,-261.16993106,0.00013988,2]
[383955641,1757206240303,-367.2049342,0.00013988,2]
[383955642,1757206240313,-628.37486526,0.00013988,2]
[383955643,1757206240323,-4832.61,0.00013988,2]
[383955644,1757206240333,-979.57,0.00013988,2]
[383955645,1757206240343,-511.29178649,0.00013988,2]
[383955689,1757207432779,-643.204046,0.00013699,2]
[383955690,1757207432789,-195.763111,0.00013699,2]
[383955691,1757207432799,-551.50944353,0.00013884,2]
[383955692,1757207432811,-192.37626405,0.00013884,2]
[383955693,1757207432822,-1254.04887473,0.00013886,2]
[383955717,1757207438483,-385.44840712,0.00013886,2]
[383955718,1757207438493,-5714.70687893,0.00013889,2]
[383955719,1757207438502,-300.0,0.00013953,2]
[383955720,1757207438512,-1639.49728183,0.00013955,2]
[383955721,1757207438522,-1200.0,0.00013983,2]
[383955722,1757207438530,-480.0,0.00013983,2]
[383955723,1757207438539,-480.0,0.00013984,2]
[383955724,1757207438549,-5656.09,0.00013984,2]
[383955725,1757207438558,-480.0,0.00013984,2]
[383955726,1757207438567,-480.0,0.00013984,2]
[383955727,1757207438575,-5679.25,0.00013984,2]
[383955728,1757207438584,-701.64,0.00013984,2]
[383955729,1757207438593,-1030.09,0.00013984,2]
[383955730,1757207438604,-480.0,0.00013984,2]
[383955731,1757207438614,-2203.45,0.00013984,2]
[383955732,1757207438625,-480.0,0.00013984,2]
[383955733,1757207438634,-480.0,0.00013984,2]
[383955734,1757207438644,-4063.51,0.00013984,2]
[383955735,1757207438657,-3000.23,0.00013984,2]
[383955736,1757207438667,-480.0,0.00013984,2]
[383955737,1757207438676,-656.79,0.00013984,2]
[383955738,1757207438685,-665.48,0.00013984,2]
[383955739,1757207438694,-1296.12,0.00013984,2]
[383955740,1757207438703,-945.76,0.00013984,2]
[383955741,1757207438712,-2372.44,0.00013984,2]
[383955742,1757207438722,-445.90760148,0.00013984,2]
[383956086,1757207443773,-433.1936873,0.00013984,2]
[383956277,1757207446714,-1020.45871122,0.00013984,2]
[383956278,1757207446724,-4.27708604,0.00013984,2]
[383956296,1757207768972,224.69,0.00012329,2]
[383956297,1757207779437,187.24,0.00012329,2]
[383956298,1757207789913,156.03,0.00012329,2]
[383956299,1757207800483,780.18,0.00012329,2]
[383956301,1757208282001,221.92,0.00012329,2]
[383956302,1757208292495,221.92,0.00012329,2]
[383956303,1757208303295,887.68,0.00012329,2]
[383956305,1757208361841,-292.551237,0.00013289,2]
[383956306,1757208364659,-110.20598267,0.00013289,2]
[383956330,1757208632713,-273.62263705,0.00013426,2]
[383956338,1757208638992,-206.37736295,0.00013426,2]
[383956339,1757208639012,-611.043843,0.00013699,2]
[383956340,1757208639022,-1570.63875248,0.00013878,2]
[383956341,1757208639032,-5714.70687893,0.00013885,2]
[383956342,1757208639042,-300.0,0.00013947,2]
[383956343,1757208639051,-1570.63875248,0.00013948,2]
[383956344,1757208639061,-1200.0,0.00013957,2]
[383956345,1757208639070,-2105.41764886,0.00013959,2]
[383956346,1757208639080,-480.0,0.00013965,2]
[383956347,1757208639089,-509.93,0.00013965,2]
[383956348,1757208639099,-480.0,0.00013966,2]
[383956349,1757208639109,-5698.16,0.00013966,2]
[383956350,1757208639118,-480.0,0.00013966,2]
[383956351,1757208639127,-5691.11,0.00013966,2]
[383956352,1757208639136,-480.0,0.00013966,2]
[383956353,1757208639146,-1050.09,0.00013966,2]
[383956354,1757208639155,-480.0,0.00013966,2]
[383956355,1757208639164,-721.64,0.00013966,2]
[383956356,1757208639173,-480.0,0.00013966,2]
[383956357,1757208639183,-2223.45,0.00013966,2]
[383956358,1757208639193,-500.0,0.00013966,2]
[383956359,1757208639203,-330.66991882,0.00013966,2]
[383956360,1757208639212,-256.70591889,0.00013966,2]
[383956361,1757208639222,-521.48093464,0.00013966,2]
[383956362,1757208639231,-152.94087464,0.00013966,2]
[383956363,1757208639241,-500.0,0.00013966,2]
[383956364,1757208639251,-186.07985698,0.00013966,2]
[383956365,1757208639261,-480.0,0.00013966,2]
[383956366,1757208639270,-4083.51,0.00013966,2]
[383956367,1757208639280,-2731.81942669,0.00013966,2]
[383956399,1757208640798,-251.97058948,0.00013966,2]
[383956707,1757208643961,-36.43998383,0.00013966,2]
[383956709,1757208643971,-676.79,0.00013966,2]
[383956711,1757208643981,-480.0,0.00013966,2]
[383956713,1757208643991,-480.0,0.00013966,2]
[383956715,1757208644000,-665.48,0.00013966,2]
[383956717,1757208644010,-945.76,0.00013966,2]
[383956719,1757208644020,-141.84404361,0.00013966,2]
[383956722,1757208644031,-340.90800002,0.00013966,2]
[383956724,1757208644043,-261.49795637,0.00013966,2]
[383956726,1757208644052,-1858.99,0.00013966,2]
[383956728,1757208644062,-1316.94,0.00013966,2]
[383956730,1757208644071,-151.0,0.00013966,2]
[383956732,1757208644081,-151.0,0.00013966,2]
[383956734,1757208644090,-2099.39,0.00013966,2]
[383956736,1757208644100,-480.0,0.00013966,2]
[383956738,1757208644109,-196.265774,0.00013966,2]
[383956740,1757208644119,-196.265774,0.00013966,2]
[383956742,1757208644128,-2348.99,0.00013966,2]
[383956744,1757208644138,-196.265774,0.00013966,2]
[383956746,1757208644147,-196.265774,0.00013966,2]
[383956748,1757208644156,-825.9,0.00013966,2]
[383956750,1757208644166,-984.64169206,0.00013967,2]
[383956752,1757208644175,-23111.29689485,0.00013967,2]
[383956884,1757208935366,800.0,0.00013011,2]
[383956885,1757209110125,-237.27191631,0.00013329,2]
[383956886,1757209125500,170.86530018,0.00013064,2]
[383956887,1757209145837,879.01,0.00012329,2]
[383956888,1757209147490,170.86530018,0.00013064,2]
[383956889,1757209170489,170.86530018,0.00013064,2]
[383956890,1757209192638,170.86530018,0.00013064,2]
[383956891,1757209235755,-170.86530018,0.00013196,2]
[383956892,1757209235777,-79.57090536,0.0001321,2]
[383956893,1757209236877,-154.40786856,0.0001321,2]
[383956894,1757209238552,-16.45743162,0.0001321,2]
[383956895,1757209252178,-170.86530018,0.00013196,2]
[383956896,1757209274808,170.86530018,0.00013064,2]
[383956897,1757209297207,170.86530018,0.00013064,2]
[383956899,1757209312581,170.86530018,0.00013064,2]
[383956900,1757209320569,170.86530018,0.00013064,2]
[383956901,1757209336214,170.86530018,0.00013064,2]
[383956902,1757209344084,170.86530018,0.00013064,2]
[383956903,1757209359226,170.86530018,0.00013064,2]
[383956904,1757209367485,170.86530018,0.00013064,2]
[383956905,1757209382461,170.86530018,0.00013064,2]
[383956906,1757209390380,170.86530018,0.00013064,2]
[383956908,1757209405791,170.86530018,0.00013064,2]
[383956910,1757209413653,170.86530018,0.00013064,2]
[383956912,1757209429295,170.86530018,0.00013064,2]
[383956913,1757209437128,170.86530018,0.00013064,2]
[383956914,1757209446003,170.86530018,0.00013064,2]
[383956915,1757209474882,-292.6772682,0.00013196,2]
[383956916,1757209477035,-13.45542047,0.00013196,2]
[383956917,1757209494393,-178.76473753,0.00013196,2]
[383956918,1757209496626,-267.3760839,0.00013196,2]
[383956919,1757209499988,-33.85917857,0.00013196,2]
[383956920,1757209516277,-253.92066343,0.00013196,2]
[383956921,1757209518877,-205.67557847,0.00013196,2]
[383956922,1757209653723,500.4037581,0.00013064,2]
[383956923,1757209662202,500.4037581,0.00013064,2]
[383956924,1757209678311,500.4037581,0.00013064,2]
[383956925,1757209686805,381.12955422,0.00013064,2]
[383956926,1757209701951,304.11938525,0.00013064,2]
[383956927,1757209739339,500.4037581,0.00013064,2]
[383956938,1757209831940,-636.16497065,0.000136,2]
[383956939,1757209831952,-363.83502935,0.000136,2]
[383956940,1757209831961,-687.612004,0.00013699,2]
[383956941,1757209831973,-1426.66979117,0.00013857,2]
[383956942,1757209831985,-678.74785769,0.00013857,2]
[383956943,1757209831995,-496.61394442,0.00013858,2]
[383956944,1757209832019,-1413.6824484,0.00013858,2]
[383956945,1757209832029,-1200.0,0.00013863,2]
[383956946,1757209832039,-300.0,0.00013863,2]
[383956947,1757209832048,-509.93,0.00013864,2]
[383956948,1757209832057,-480.0,0.00013864,2]
[383956949,1757209832067,-483.11809171,0.00013864,2]
[383956950,1757209832077,-480.0,0.00013864,2]
[383956951,1757209832086,-1704.98516073,0.00013864,2]
[383956952,1757209832097,-595.51861012,0.00013864,2]
[383956958,1757209837874,-3420.05622915,0.00013864,2]
[383956959,1757209838015,-494.99816511,0.00013864,2]
[383956960,1757209838031,-480.0,0.00013864,2]
[383956961,1757209838040,-414.37260541,0.00013864,2]
[383956962,1757209838050,-1071.17,0.00013864,2]
[383956963,1757209838060,-484.16551076,0.00013864,2]
[383956964,1757209838070,-480.0,0.00013864,2]
[383956965,1757209838079,-480.0,0.00013864,2]
[383956966,1757209838090,-480.0,0.00013864,2]
[383956967,1757209838100,-480.0,0.00013864,2]
[383956968,1757209838109,-4110.79,0.00013864,2]
[383956969,1757209838119,-3032.12,0.00013864,2]
[383956970,1757209838129,-480.0,0.00013864,2]
[383956971,1757209838138,-649.39,0.00013864,2]
[383956972,1757209838148,-480.0,0.00013864,2]
[383956973,1757209838157,-658.72,0.00013864,2]
[383956974,1757209838166,-1282.07,0.00013864,2]
[383956975,1757209838176,-907.36,0.00013864,2]
[383956976,1757209838185,-2330.98,0.00013864,2]
[383956977,1757209838194,-714.07,0.00013864,2]
[383956978,1757209838205,-480.0,0.00013864,2]
[383956979,1757209838215,-791.49,0.00013864,2]
[383956980,1757209838227,-480.0,0.00013864,2]
[383956981,1757209838237,-16908.28029598,0.00013865,2]
[383956982,1757209838248,-800.0,0.00013865,2]
[383956994,1757209839966,-5801.85572348,0.00013865,2]
[383956996,1757209839976,-157.012619,0.00013865,2]
[383956998,1757209839987,-157.012619,0.00013865,2]
[383957000,1757209839997,-157.012619,0.00013865,2]
[383957002,1757209840006,-157.012619,0.00013865,2]
[383957004,1757209840016,-2183.31810187,0.00013912,2]
[383957006,1757209840026,-1910.29639278,0.00013928,2]
[383957007,1757209840035,-270.92646495,0.00013936,2]
[383957009,1757209840045,-503.16863286,0.00013936,2]
[383957011,1757209840055,-500.0,0.00013936,2]
[383957013,1757209840064,-500.0,0.00013936,2]
[383957015,1757209840074,-500.0,0.00013936,2]
[383957017,1757209840083,-500.0,0.00013936,2]
[383957019,1757209840092,-240.52665109,0.00013936,2]
[383957021,1757209840102,-531.45420009,0.00013936,2]
[383957023,1757209840111,-335.10843938,0.00013936,2]
[383957025,1757209840121,-168.7310586,0.00013936,2]
[383957027,1757209840130,-500.0,0.00013936,2]
[383957029,1757209840140,-565.43996044,0.00013936,2]
[383957031,1757209840149,-157.012619,0.00013936,2]
[383957033,1757209840159,-157.012619,0.00013936,2]
[383957035,1757209840168,-157.012619,0.00013936,2]
[383957037,1757209840177,-157.012619,0.00013936,2]
[383957039,1757209840187,-498.90792694,0.00013937,2]
[383957041,1757209840196,-25106.17993031,0.00013937,2]
[383957063,1757209840409,-91.3522721,0.00013937,2]
[383958726,1757210036801,1899.0,0.00029048,60]
[383958728,1757210427649,184.1,0.00012329,2]
[383958730,1757210682513,804.610909,0.00012834,2]
[383958741,1757211032101,-171.9390997,0.00013699,2]
[383958742,1757211032111,-428.4230042,0.00013699,2]
[383958743,1757211032122,-251.7348938,0.00013699,2]
[383958744,1757211032132,-265.73425002,0.00013734,2]
[383958794,1757211038065,-387.20970297,0.00013734,2]
[383958796,1757211038075,-1839.64220562,0.00013736,2]
[383958798,1757211038085,-1200.0,0.00013763,2]
[383958800,1757211038095,-300.0,0.00013763,2]
[383958802,1757211038104,-300.0,0.00013763,2]
[383958804,1757211038113,-300.0,0.00013763,2]
[383958806,1757211038122,-1839.64220559,0.00013771,2]
[383958807,1757211038132,-1839.64220559,0.00013807,2]
[383958808,1757211038141,-2105.41764886,0.00013828,2]
[383958809,1757211038151,-500.0,0.00013833,2]
[383958810,1757211038160,-500.0,0.00013833,2]
[383958811,1757211038170,-500.0,0.00013833,2]
[383958812,1757211038180,-500.0,0.00013833,2]
[383958813,1757211038191,-500.0,0.00013833,2]
[383958814,1757211038201,-500.0,0.00013833,2]
[383958815,1757211038210,-500.0,0.00013833,2]
[383958816,1757211038220,-500.0,0.00013833,2]
[383958817,1757211038230,-500.0,0.00013833,2]
[383958818,1757211038239,-500.0,0.00013833,2]
[383958819,1757211038249,-500.0,0.00013833,2]
[383958820,1757211038259,-500.0,0.00013833,2]
[383958821,1757211038268,-465.34242385,0.00013833,2]
[383958822,1757211038278,-500.0,0.00013833,2]
[383958823,1757211038288,-480.361764,0.00013833,2]
[383958824,1757211038298,-500.0,0.00013833,2]
[383958825,1757211038308,-500.0,0.00013833,2]
[383958826,1757211038318,-500.0,0.00013833,2]
[383958827,1757211038326,-503.48217868,0.00013833,2]
[383958829,1757211038336,-500.0,0.00013833,2]
[383958831,1757211038345,-500.0,0.00013833,2]
[383958833,1757211038354,-502.26247626,0.00013833,2]
[383958835,1757211038364,-500.0,0.00013833,2]
[383958838,1757211038375,-500.0,0.00013833,2]
[383958840,1757211038391,-500.0,0.00013833,2]
[383958843,1757211038406,-500.0,0.00013833,2]
[383958845,1757211038418,-500.0,0.00013833,2]
[383958848,1757211038432,-500.0,0.00013833,2]
[383958850,1757211038447,-500.0,0.00013833,2]
[383958853,1757211038460,-500.0,0.00013833,2]
[383958855,1757211038476,-422.44136313,0.00013833,2]
[383958858,1757211038490,-500.0,0.00013833,2]
[383958861,1757211038504,-500.0,0.00013833,2]
[383958863,1757211038519,-500.0,0.00013833,2]
[383958865,1757211038532,-500.0,0.00013833,2]
[383958868,1757211038545,-427.53547567,0.00013833,2]
[383958870,1757211038558,-500.0,0.00013833,2]
[383958873,1757211038572,-500.0,0.00013833,2]
[383958875,1757211038585,-500.0,0.00013833,2]
[383958877,1757211038597,-500.0,0.00013833,2]
[383958879,1757211038608,-500.0,0.00013833,2]
[383958882,1757211038620,-500.0,0.00013833,2]
[383958884,1757211038634,-500.0,0.00013833,2]
[383958887,1757211038648,-500.0,0.00013833,2]
[383958889,1757211038661,-500.0,0.00013833,2]
[383958892,1757211038677,-271.78151054,0.00013833,2]
[383958894,1757211038691,-500.0,0.00013833,2]
[383958897,1757211038706,-500.0,0.00013833,2]
[383958899,1757211038716,-500.0,0.00013833,2]
[383958901,1757211038727,-500.0,0.00013833,2]
[383958903,1757211038740,-500.0,0.00013834,2]
[383958906,1757211038755,-6405.27164565,0.00013834,2]
[383958908,1757211038772,-1197.9939769,0.00013834,2]
[383958911,1757211038786,-358.7200018,0.00013834,2]
[383958962,1757211040152,-42038.01437565,0.00013834,2]
[383958963,1757211040165,-151.0,0.00013834,2]
[383958964,1757211040178,-154.569551,0.00013834,2]
[383958965,1757211040191,-151.0,0.00013834,2]
[383958966,1757211040203,-151.0,0.00013834,2]
[383958967,1757211040215,-151.0,0.00013834,2]
[383958968,1757211040227,-154.476101,0.00013834,2]
[383958969,1757211040240,-155.063958,0.00013834,2]
[383958970,1757211040252,-151.0,0.00013834,2]
[383958971,1757211040263,-151.0,0.00013834,2]
[383958972,1757211040275,-480.0,0.00013834,2]
[383958973,1757211040287,-480.0,0.00013834,2]
[383958974,1757211040299,-481.53315563,0.00013834,2]
[383958975,1757211040312,-698.72,0.00013834,2]
[383958976,1757211040324,-1101.72,0.00013834,2]
[383958977,1757211040335,-2370.98,0.00013834,2]
[383958978,1757211040346,-754.07,0.00013834,2]
[383958979,1757211040360,-151.0,0.00013834,2]
[383958980,1757211040372,-151.0,0.00013834,2]
[383958981,1757211040384,-151.0,0.00013834,2]
[383958982,1757211040395,-151.0,0.00013834,2]
[383958983,1757211040407,-151.0,0.00013834,2]
[383958984,1757211040421,-153.722325,0.00013834,2]
[383958985,1757211040434,-151.0,0.00013834,2]
[383958986,1757211040447,-151.0,0.00013834,2]
[383958987,1757211040457,-151.0,0.00013834,2]
[383958988,1757211040467,-151.0,0.00013834,2]
[383958989,1757211040642,-151.0,0.00013834,2]
[383958990,1757211040661,-223.15143452,0.00013834,2]
[383958991,1757211040671,-249.45396347,0.00013835,2]
[383958992,1757211040682,-481.40797974,0.00013835,2]
[383958993,1757211040691,-480.0,0.00013835,2]
[383958994,1757211040701,-484.65277725,0.00013835,2]
[383958995,1757211040711,-154.328836,0.00013835,2]
[383958996,1757211040720,-154.328836,0.00013835,2]
[383958997,1757211040730,-154.328836,0.00013835,2]
[383958998,1757211040739,-154.328836,0.00013835,2]
[383958999,1757211040749,-480.0,0.00013835,2]
[383959000,1757211040758,-154.328836,0.00013835,2]
[383959001,1757211040767,-154.328836,0.00013835,2]
[383959002,1757211040777,-154.328836,0.00013835,2]
[383959003,1757211040786,-154.328836,0.00013835,2]
[383959004,1757211040796,-6001.62,0.00013835,2]
[383959005,1757211040805,-151.0,0.00013835,2]
[383959006,1757211040814,-480.0,0.00013835,2]
[383959007,1757211040824,-151.0,0.00013835,2]
[383959008,1757211040834,-4720.58,0.00013835,2]
[383959009,1757211040843,-480.0,0.00013835,2]
[383959010,1757211040852,-151.0,0.00013835,2]
[383959011,1757211040862,-151.0,0.00013835,2]
[383959012,1757211040871,-151.0,0.00013835,2]
[383959013,1757211040881,-201.542001,0.00013835,2]
[383959014,1757211040891,-151.0,0.00013835,2]
[383959015,1757211040905,-151.0,0.00013835,2]
[383959016,1757211040915,-151.0,0.00013835,2]
[383959017,1757211040924,-151.0,0.00013835,2]
[383959018,1757211040933,-1111.17,0.00013835,2]
[383959019,1757211040943,-480.0,0.00013835,2]
[383959020,1757211040952,-480.0,0.00013835,2]
[383959021,1757211040961,-480.0,0.00013835,2]
[383959022,1757211040971,-762.47,0.00013835,2]
[383959023,1757211040980,-151.0,0.00013835,2]
[383959024,1757211040991,-151.0,0.00013835,2]
[383959025,1757211041000,-480.0,0.00013835,2]
[383959026,1757211041010,-151.0,0.00013835,2]
[383959027,1757211041019,-151.0,0.00013835,2]
[383959028,1757211041029,-175.854956,0.00013835,2]
[383959029,1757211041038,-4150.79,0.00013835,2]
[383959030,1757211041048,-2269.5,0.00013835,2]
[383959031,1757211041057,-3072.12,0.00013835,2]
[383959032,1757211041068,-689.39,0.00013835,2]
[383959033,1757211041078,-480.0,0.00013835,2]
[383959034,1757211041087,-480.0,0.00013835,2]
[383959035,1757211041097,-504.78248366,0.00013835,2]
[383959036,1757211041107,-947.36,0.00013835,2]
[383959037,1757211041116,-482.73321039,0.00013835,2]
[383959038,1757211041126,-151.0,0.00013835,2]
[383959039,1757211041135,-151.0,0.00013835,2]
[383959040,1757211041145,-480.0,0.00013835,2]
[383959041,1757211041154,-151.0,0.00013835,2]
[383959042,1757211041163,-1842.94,0.00013835,2]
[383959043,1757211041173,-183.244723,0.00013835,2]
[383959044,1757211041182,-151.0,0.00013835,2]
[383959045,1757211041191,-151.0,0.00013835,2]
[383959046,1757211041201,-151.0,0.00013835,2]
[383959047,1757211041210,-151.0,0.00013835,2]
[383959048,1757211041219,-151.0,0.00013835,2]
[383959049,1757211041228,-151.0,0.00013835,2]
[383959050,1757211041238,-580.68588849,0.00013835,2]
[383959051,1757211041247,-482.73297235,0.00013835,2]
[383959052,1757211041256,-151.0,0.00013835,2]
[383959053,1757211041265,-151.0,0.00013835,2]
[383959054,1757211041275,-151.0,0.00013835,2]
[383959055,1757211041285,-485.34262658,0.00013836,2]
[383959056,1757211041294,-528.68,0.00013836,2]
[383959057,1757211041303,-480.0,0.00013836,2]
[383959058,1757211041312,-510.83,0.00013836,2]
[383959059,1757211041321,-536.06056447,0.00013836,2]
[383959060,1757211041331,-480.0,0.00013836,2]
[383959061,1757211041340,-486.65912531,0.00013836,2]
[383959062,1757211041349,-480.0,0.00013836,2]
[383959063,1757211041359,-480.0,0.00013836,2]
[383959064,1757211041369,-480.0,0.00013836,2]
[383959065,1757211041378,-480.0,0.00013836,2]
[383959066,1757211041391,-254.35417558,0.00013836,2]
[383959067,1757211041400,-482.8785796,0.00013836,2]
[383959068,1757211041411,-480.0,0.00013836,2]
[383959069,1757211041420,-483.12515933,0.00013836,2]
[383959070,1757211041430,-480.0,0.00013836,2]
[383959071,1757211041440,-484.19708475,0.00013836,2]
[383959072,1757211041449,-480.0,0.00013836,2]
[383959073,1757211041461,-480.0,0.00013836,2]
[383959074,1757211041470,-480.0,0.00013836,2]
[383959075,1757211041481,-480.0,0.00013836,2]
[383959076,1757211041491,-478.89139085,0.00013836,2]
[383959077,1757211041501,-480.0,0.00013836,2]
[383959078,1757211041510,-480.0,0.00013836,2]
[383959079,1757211041519,-480.0,0.00013836,2]
[383959080,1757211041529,-382.20205666,0.00013836,2]
[383959081,1757211041539,-481.65706932,0.00013836,2]
[383959082,1757211041549,-480.0,0.00013836,2]